Workbook

Sheet Sine
A1: Fitting Sinusoidal Functions to Data
B3: This DIGMath module lets you find the best
B4: sine function Y = A + B sin (2p/C (t - D))
D5: to fit a set of data
A8: How many data points (10-30)? | E8: =F8 -> 22 | F8: 22 | G8: 14
A10: Enter the data values in the cells below:
B11: x | C11: y | F11: In Y = A + B sin (2p/C (t - D))
A12: 1 | B12: 1 | C12: 55 | G12: A = | H12: 80
A13: 2 | B13: 15 | C13: 53
A14: 3 | B14: 32 | C14: 56 | G14: B = | H14: 20
A15: 4 | B15: 46 | C15: 59
A16: 5 | B16: 60 | C16: 63 | G16: C = | H16: 310
A17: 6 | B17: 74 | C17: 67
A18: 7 | B18: 91 | C18: 72 | G18: D = | H18: 80 | L18: The Sum of the Squares = | O18: =SUM(Sheet3!C4:C30) -> 3136.841061
A19: 8 | B19: 105 | C19: 77
A20: 9 | B20: 121 | C20: 81
A21: 10 | B21: 135 | C21: 84
A22: =IF(Sheet3!J14<=n,Sheet3!J13+1,"") -> 11 | B22: 152 | C22: 89
A23: =IF(Sheet3!J15<=n,Sheet3!J14+1,"") -> 12 | B23: 196 | C23: 98
A24: =IF(Sheet3!J16<=n,Sheet3!J15+1,"") -> 13 | B24: 213 | C24: 99
A25: =IF(Sheet3!J17<=n,Sheet3!J16+1,"") -> 14 | B25: 227 | C25: 98
A26: =IF(Sheet3!J18<=n,Sheet3!J17+1,"") -> 15 | B26: 244 | C26: 94
A27: =IF(Sheet3!J19<=n,Sheet3!J18+1,"") -> 16 | B27: 258 | C27: 90
A28: =IF(Sheet3!J20<=n,Sheet3!J19+1,"") -> 17 | B28: 274 | C28: 85
A29: =IF(Sheet3!J21<=n,Sheet3!J20+1,"") -> 18 | B29: 288 | C29: 80
A30: =IF(Sheet3!J22<=n,Sheet3!J21+1,"") -> 19 | B30: 305 | C30: 72
A31: =IF(Sheet3!J23<=n,Sheet3!J22+1,"") -> 20 | B31: 319 | C31: 66
A32: =IF(Sheet3!J24<=n,Sheet3!J23+1,"") -> 21 | B32: 335 | C32: 61
A33: =IF(Sheet3!J25<=n,Sheet3!J24+1,"") -> 22 | B33: 349 | C33: 58
A34: =IF(Sheet3!J26<=n,Sheet3!J25+1,"") -> 
A35: =IF(Sheet3!J27<=n,Sheet3!J26+1,"") -> 
A36: =IF(Sheet3!J28<=n,Sheet3!J27+1,"") -> 
A37: =IF(Sheet3!J29<=n,Sheet3!J28+1,"") -> 
A38: =IF(Sheet3!J30<=n,Sheet3!J29+1,"") -> 
A39: =IF(Sheet3!J31<=n,Sheet3!J30+1,"") -> 
A40: =IF(Sheet3!J32<=n,Sheet3!J31+1,"") -> 
A41: =IF(Sheet3!J33<=n,Sheet3!J32+1,"") -> 
A46: Click each item below for suggestions and investigations
A47: Item 1
A48: Item 2
A49: Item 3
A50: Item 4
B52: Created by: Sheldon P. Gordon
B53: Farmingdale StateCollege
B54: Development of this module was supported by the
B55: NSF's Division of Undergraduate Education
B56: under grants DUE-0310123 and DUE-0442160.

Sheet Cosine
A1: Fitting Sinusoidal Functions to Data
A3: This DIGMath module lets you find the best
B4: cosine function Y = A + B cos (2p/C (t - D))
D5: to fit a set of data
A8: How many data points (10-30)? | E8: =F8 -> 22 | F8: 22 | G8: 14
A10: Enter the data values in the cells below:
B12: x | C12: y
A13: 1 | B13: 1 | C13: 55 | E13: In Y = A + B cos (2p/C (t - D))
A14: 2 | B14: 15 | C14: 53
A15: 3 | B15: 32 | C15: 56 | F15: A = | G15: 75 | J15: The Sum of the Squares = | M15: =SUM(Sheet3!H4:H30) -> 1913.665154
A16: 4 | B16: 46 | C16: 59
A17: 5 | B17: 60 | C17: 63 | F17: B = | G17: -20
A18: 6 | B18: 74 | C18: 67
A19: 7 | B19: 91 | C19: 72 | F19: C = | G19: 350
A20: 8 | B20: 105 | C20: 77
A21: 9 | B21: 121 | C21: 81 | F21: D = | G21: 60
A22: 10 | B22: 135 | C22: 84
A23: =IF(Sheet3!J14<=nn,Sheet3!J13+1,"") -> 11 | B23: 152 | C23: 89
A24: =IF(Sheet3!J15<=nn,Sheet3!J14+1,"") -> 12 | B24: 196 | C24: 98
A25: =IF(Sheet3!J16<=nn,Sheet3!J15+1,"") -> 13 | B25: 213 | C25: 99
A26: =IF(Sheet3!J17<=nn,Sheet3!J16+1,"") -> 14 | B26: 227 | C26: 98
A27: =IF(Sheet3!J18<=nn,Sheet3!J17+1,"") -> 15 | B27: 244 | C27: 94
A28: =IF(Sheet3!J19<=nn,Sheet3!J18+1,"") -> 16 | B28: 258 | C28: 90
A29: =IF(Sheet3!J20<=nn,Sheet3!J19+1,"") -> 17 | B29: 274 | C29: 85
A30: =IF(Sheet3!J21<=nn,Sheet3!J20+1,"") -> 18 | B30: 288 | C30: 80
A31: =IF(Sheet3!J22<=nn,Sheet3!J21+1,"") -> 19 | B31: 305 | C31: 72
A32: =IF(Sheet3!J23<=nn,Sheet3!J22+1,"") -> 20 | B32: 319 | C32: 66
A33: =IF(Sheet3!J24<=nn,Sheet3!J23+1,"") -> 21 | B33: 335 | C33: 61
A34: =IF(Sheet3!J25<=nn,Sheet3!J24+1,"") -> 22 | B34: 349 | C34: 58
A35: =IF(Sheet3!J26<=nn,Sheet3!J25+1,"") -> 
A36: =IF(Sheet3!J27<=nn,Sheet3!J26+1,"") -> 
A37: =IF(Sheet3!J28<=nn,Sheet3!J27+1,"") -> 
A38: =IF(Sheet3!J29<=nn,Sheet3!J28+1,"") -> 
A39: =IF(Sheet3!J30<=nn,Sheet3!J29+1,"") -> 
A40: =IF(Sheet3!J31<=nn,Sheet3!J30+1,"") -> 
A41: =IF(Sheet3!J32<=nn,Sheet3!J31+1,"") -> 
A42: =IF(Sheet3!J33<=nn,Sheet3!J32+1,"") -> 
A44: Click each item below for suggestions and investigations
D45: Item 1
D46: Item 2
D47: Item 3
D48: Item 4

Sheet Sheet3
A1: Sine | F1: Cosine
A3: Sinusoidal | F3: Sinusoidal
A4: =Sine!$H$12+Sine!$H$14*SIN(2*3.14159/Sine!$H$16*(Sine!B12-Sine!$H$18)) -> 60.00924159 | B4: =Sine!C12-Sheet3!A4 -> -5.009241592 | C4: =B4^2 -> 25.09250132 | F4: =Cosine!$G$15+Cosine!$G$17*COS(2*3.14159/Cosine!$G$19*(Cosine!B13-Cosine!$G$21)) -> 65.20798696 | G4: =Cosine!C13-Sheet3!F4 -> -10.20798696 | H4: =G4^2 -> 104.2029978 | J4: 1
A5: =Sine!$H$12+Sine!$H$14*SIN(2*3.14159/Sine!$H$16*(Sine!B13-Sine!$H$18)) -> 60.6384632 | B5: =Sine!C13-Sheet3!A5 -> -7.638463201 | C5: 58.34612008 | F5: =Cosine!$G$15+Cosine!$G$17*COS(2*3.14159/Cosine!$G$19*(Cosine!B14-Cosine!$G$21)) -> 61.17873716 | G5: =Cosine!C14-Sheet3!F5 -> -8.178737156 | H5: 66.89174147 | J5: 2
A6: =Sine!$H$12+Sine!$H$14*SIN(2*3.14159/Sine!$H$16*(Sine!B14-Sine!$H$18)) -> 63.46979876 | B6: =Sine!C14-Sheet3!A6 -> -7.469798755 | C6: 55.79789345 | F6: =Cosine!$G$15+Cosine!$G$17*COS(2*3.14159/Cosine!$G$19*(Cosine!B15-Cosine!$G$21)) -> 57.47386231 | G6: =Cosine!C15-Sheet3!F6 -> -1.473862308 | H6: 2.172270104 | J6: 3
A7: =Sine!$H$12+Sine!$H$14*SIN(2*3.14159/Sine!$H$16*(Sine!B15-Sine!$H$18)) -> 67.2827894 | B7: =Sine!C15-Sheet3!A7 -> -8.282789403 | C7: 68.60460029 | F7: =Cosine!$G$15+Cosine!$G$17*COS(2*3.14159/Cosine!$G$19*(Cosine!B16-Cosine!$G$21)) -> 55.62833572 | G7: =Cosine!C16-Sheet3!F7 -> 3.371664278 | H7: 11.36812001 | J7: 4
A8: =Sine!$H$12+Sine!$H$14*SIN(2*3.14159/Sine!$H$16*(Sine!B16-Sine!$H$18)) -> 72.11288919 | B8: =Sine!C16-Sheet3!A8 -> -9.112889191 | C8: 83.0447494 | F8: =Cosine!$G$15+Cosine!$G$17*COS(2*3.14159/Cosine!$G$19*(Cosine!B17-Cosine!$G$21)) -> 55 | G8: =Cosine!C17-Sheet3!F8 -> 8 | H8: 64 | J8: 5
A9: =Sine!$H$12+Sine!$H$14*SIN(2*3.14159/Sine!$H$16*(Sine!B17-Sine!$H$18)) -> 77.57379181 | B9: =Sine!C17-Sheet3!A9 -> -10.57379181 | C9: 111.8050733 | F9: =Cosine!$G$15+Cosine!$G$17*COS(2*3.14159/Cosine!$G$19*(Cosine!B18-Cosine!$G$21)) -> 55.62833572 | G9: =Cosine!C18-Sheet3!F9 -> 11.37166428 | H9: 129.3147485 | J9: 6
A10: =Sine!$H$12+Sine!$H$14*SIN(2*3.14159/Sine!$H$16*(Sine!B18-Sine!$H$18)) -> 84.42218154 | B10: =Sine!C18-Sheet3!A10 -> -12.42218154 | C10: 154.3105941 | F10: =Cosine!$G$15+Cosine!$G$17*COS(2*3.14159/Cosine!$G$19*(Cosine!B19-Cosine!$G$21)) -> 58.01792667 | G10: =Cosine!C19-Sheet3!F10 -> 13.98207333 | H10: 195.4983746 | J10: 7
A11: =Sine!$H$12+Sine!$H$14*SIN(2*3.14159/Sine!$H$16*(Sine!B19-Sine!$H$18)) -> 89.70603177 | B11: =Sine!C19-Sheet3!A11 -> -12.70603177 | C11: 161.4432432 | F11: =Cosine!$G$15+Cosine!$G$17*COS(2*3.14159/Cosine!$G$19*(Cosine!B20-Cosine!$G$21)) -> 61.17873716 | G11: =Cosine!C20-Sheet3!F11 -> 15.82126284 | H11: 250.312358 | J11: 8
A12: =Sine!$H$12+Sine!$H$14*SIN(2*3.14159/Sine!$H$16*(Sine!B20-Sine!$H$18)) -> 94.77213408 | B12: =Sine!C20-Sheet3!A12 -> -13.77213408 | C12: 189.6716772 | F12: =Cosine!$G$15+Cosine!$G$17*COS(2*3.14159/Cosine!$G$19*(Cosine!B21-Cosine!$G$21)) -> 65.84028871 | G12: =Cosine!C21-Sheet3!F12 -> 15.15971129 | H12: 229.8168463 | J12: 9
A13: =Sine!$H$12+Sine!$H$14*SIN(2*3.14159/Sine!$H$16*(Sine!B21-Sine!$H$18)) -> 97.9560825 | B13: =Sine!C21-Sheet3!A13 -> -13.9560825 | C13: 194.7722387 | F13: =Cosine!$G$15+Cosine!$G$17*COS(2*3.14159/Cosine!$G$19*(Cosine!B22-Cosine!$G$21)) -> 70.54955915 | G13: =Cosine!C22-Sheet3!F13 -> 13.45044085 | H13: 180.9143592 | J13: 10
A14: =Sine!$H$12+Sine!$H$14*SIN(2*3.14159/Sine!$H$16*(Sine!B22-Sine!$H$18)) -> 99.8758572 | B14: =IF(Sine!C22="","",Sine!C22-Sheet3!A14) -> -10.8758572 | C14: =IF(Sine!C22="","",B14^2) -> 118.2842699 | F14: =Cosine!$G$15+Cosine!$G$17*COS(2*3.14159/Cosine!$G$19*(Cosine!B23-Cosine!$G$21)) -> 76.61389166 | G14: =IF(Cosine!C23="","",Cosine!C23-Sheet3!F14) -> 12.38610834 | H14: =IF(Cosine!C23="","",G14^2) -> 153.4156798 | J14: 11
A15: =Sine!$H$12+Sine!$H$14*SIN(2*3.14159/Sine!$H$16*(Sine!B23-Sine!$H$18)) -> 94.21364111 | B15: =IF(Sine!C23="","",Sine!C23-Sheet3!A15) -> 3.78635889 | C15: =IF(Sine!C23="","",B15^2) -> 14.33651364 | F15: =Cosine!$G$15+Cosine!$G$17*COS(2*3.14159/Cosine!$G$19*(Cosine!B24-Cosine!$G$21)) -> 90.29518895 | G15: =IF(Cosine!C24="","",Cosine!C24-Sheet3!F15) -> 7.704811054 | H15: =IF(Cosine!C24="","",G15^2) -> 59.36411338 | J15: 12
A16: =Sine!$H$12+Sine!$H$14*SIN(2*3.14159/Sine!$H$16*(Sine!B24-Sine!$H$18)) -> 88.62550487 | B16: =IF(Sine!C24="","",Sine!C24-Sheet3!A16) -> 10.37449513 | C16: =IF(Sine!C24="","",B16^2) -> 107.6301492 | F16: =Cosine!$G$15+Cosine!$G$17*COS(2*3.14159/Cosine!$G$19*(Cosine!B25-Cosine!$G$21)) -> 93.4603515 | G16: =IF(Cosine!C25="","",Cosine!C25-Sheet3!F16) -> 5.539648502 | H16: =IF(Cosine!C25="","",G16^2) -> 30.68770553 | J16: 13
A17: =Sine!$H$12+Sine!$H$14*SIN(2*3.14159/Sine!$H$16*(Sine!B25-Sine!$H$18)) -> 83.22879239 | B17: =IF(Sine!C25="","",Sine!C25-Sheet3!A17) -> 14.77120761 | C17: =IF(Sine!C25="","",B17^2) -> 218.1885741 | F17: =Cosine!$G$15+Cosine!$G$17*COS(2*3.14159/Cosine!$G$19*(Cosine!B26-Cosine!$G$21)) -> 94.79409243 | G17: =IF(Cosine!C26="","",Cosine!C26-Sheet3!F17) -> 3.205907574 | H17: =IF(Cosine!C26="","",G17^2) -> 10.27784337 | J17: 14
A18: =Sine!$H$12+Sine!$H$14*SIN(2*3.14159/Sine!$H$16*(Sine!B26-Sine!$H$18)) -> 76.37195346 | B18: =IF(Sine!C26="","",Sine!C26-Sheet3!A18) -> 17.62804654 | C18: =IF(Sine!C26="","",B18^2) -> 310.7480247 | F18: =Cosine!$G$15+Cosine!$G$17*COS(2*3.14159/Cosine!$G$19*(Cosine!B27-Cosine!$G$21)) -> 94.73953537 | G18: =IF(Cosine!C27="","",Cosine!C27-Sheet3!F18) -> -0.7395353704 | H18: =IF(Cosine!C27="","",G18^2) -> 0.546912564 | J18: 15
A19: =Sine!$H$12+Sine!$H$14*SIN(2*3.14159/Sine!$H$16*(Sine!B27-Sine!$H$18)) -> 71.01065674 | B19: =IF(Sine!C27="","",Sine!C27-Sheet3!A19) -> 18.98934326 | C19: =IF(Sine!C27="","",B19^2) -> 360.5951574 | F19: =Cosine!$G$15+Cosine!$G$17*COS(2*3.14159/Cosine!$G$19*(Cosine!B28-Cosine!$G$21)) -> 93.31928396 | G19: =IF(Cosine!C28="","",Cosine!C28-Sheet3!F19) -> -3.319283962 | H19: =IF(Cosine!C28="","",G19^2) -> 11.01764602 | J19: 16
A20: =Sine!$H$12+Sine!$H$14*SIN(2*3.14159/Sine!$H$16*(Sine!B28-Sine!$H$18)) -> 65.78643356 | B20: =IF(Sine!C28="","",Sine!C28-Sheet3!A20) -> 19.21356644 | C20: =IF(Sine!C28="","",B20^2) -> 369.1611352 | F20: =Cosine!$G$15+Cosine!$G$17*COS(2*3.14159/Cosine!$G$19*(Cosine!B29-Cosine!$G$21)) -> 90.29525734 | G20: =IF(Cosine!C29="","",Cosine!C29-Sheet3!F20) -> -5.295257336 | H20: =IF(Cosine!C29="","",G20^2) -> 28.03975025 | J20: 17
A21: =Sine!$H$12+Sine!$H$14*SIN(2*3.14159/Sine!$H$16*(Sine!B29-Sine!$H$18)) -> 62.4156386 | B21: =IF(Sine!C29="","",Sine!C29-Sheet3!A21) -> 17.5843614 | C21: =IF(Sine!C29="","",B21^2) -> 309.2097659 | F21: =Cosine!$G$15+Cosine!$G$17*COS(2*3.14159/Cosine!$G$19*(Cosine!B30-Cosine!$G$21)) -> 86.61005534 | G21: =IF(Cosine!C30="","",Cosine!C30-Sheet3!F21) -> -6.610055342 | H21: =IF(Cosine!C30="","",G21^2) -> 43.69283162 | J21: 18
A22: =Sine!$H$12+Sine!$H$14*SIN(2*3.14159/Sine!$H$16*(Sine!B30-Sine!$H$18)) -> 60.23064518 | B22: =IF(Sine!C30="","",Sine!C30-Sheet3!A22) -> 11.76935482 | C22: =IF(Sine!C30="","",B22^2) -> 138.5177129 | F22: =Cosine!$G$15+Cosine!$G$17*COS(2*3.14159/Cosine!$G$19*(Cosine!B31-Cosine!$G$21)) -> 81.18041055 | G22: =IF(Cosine!C31="","",Cosine!C31-Sheet3!F22) -> -9.180410551 | H22: =IF(Cosine!C31="","",G22^2) -> 84.27993789 | J22: 19
A23: =IF(Sine!C31="","",Sine!$H$12+Sine!$H$14*SIN(2*3.14159/Sine!$H$16*(Sine!B31-Sine!$H$18))) -> 60.17330372 | B23: =IF(Sine!C31="","",Sine!C31-Sheet3!A23) -> 5.826696282 | C23: =IF(Sine!C31="","",B23^2) -> 33.95038956 | F23: =IF(Cosine!C32="","",Cosine!$G$15+Cosine!$G$17*COS(2*3.14159/Cosine!$G$19*(Cosine!B32-Cosine!$G$21))) -> 76.25588878 | G23: =IF(Cosine!C32="","",Cosine!C32-Sheet3!F23) -> -10.25588878 | H23: =IF(Cosine!C32="","",G23^2) -> 105.1832547 | J23: 20
A24: =IF(Sine!C32="","",Sine!$H$12+Sine!$H$14*SIN(2*3.14159/Sine!$H$16*(Sine!B32-Sine!$H$18))) -> 62.04387076 | B24: =IF(Sine!C32="","",Sine!C32-Sheet3!A24) -> -1.043870757 | C24: =IF(Sine!C32="","",B24^2) -> 1.089666158 | F24: =IF(Cosine!C33="","",Cosine!$G$15+Cosine!$G$17*COS(2*3.14159/Cosine!$G$19*(Cosine!B33-Cosine!$G$21))) -> 70.54966263 | G24: =IF(Cosine!C33="","",Cosine!C33-Sheet3!F24) -> -9.549662628 | H24: =IF(Cosine!C33="","",G24^2) -> 91.19605632 | J24: 21
A25: =IF(Sine!C33="","",Sine!$H$12+Sine!$H$14*SIN(2*3.14159/Sine!$H$16*(Sine!B33-Sine!$H$18))) -> 65.22779436 | B25: =IF(Sine!C33="","",Sine!C33-Sheet3!A25) -> -7.227794362 | C25: =IF(Sine!C33="","",B25^2) -> 52.24101134 | F25: =IF(Cosine!C34="","",Cosine!$G$15+Cosine!$G$17*COS(2*3.14159/Cosine!$G$19*(Cosine!B34-Cosine!$G$21))) -> 65.84038307 | G25: =IF(Cosine!C34="","",Cosine!C34-Sheet3!F25) -> -7.84038307 | H25: =IF(Cosine!C34="","",G25^2) -> 61.47160669 | J25: 22
A26: =IF(Sine!C34="","",Sine!$H$12+Sine!$H$14*SIN(2*3.14159/Sine!$H$16*(Sine!B34-Sine!$H$18))) ->  | B26: =IF(Sine!C34="","",Sine!C34-Sheet3!A26) ->  | C26: =IF(Sine!C34="","",B26^2) ->  | F26: =IF(Cosine!C35="","",Cosine!$G$15+Cosine!$G$17*COS(2*3.14159/Cosine!$G$19*(Cosine!B35-Cosine!$G$21))) ->  | G26: =IF(Cosine!C35="","",Cosine!C35-Sheet3!F26) ->  | H26: =IF(Cosine!C35="","",G26^2) ->  | J26: 23
A27: =IF(Sine!C35="","",Sine!$H$12+Sine!$H$14*SIN(2*3.14159/Sine!$H$16*(Sine!B35-Sine!$H$18))) ->  | B27: =IF(Sine!C35="","",Sine!C35-Sheet3!A27) ->  | C27: =IF(Sine!C35="","",B27^2) ->  | F27: =IF(Cosine!C36="","",Cosine!$G$15+Cosine!$G$17*COS(2*3.14159/Cosine!$G$19*(Cosine!B36-Cosine!$G$21))) ->  | G27: =IF(Cosine!C36="","",Cosine!C36-Sheet3!F27) ->  | H27: =IF(Cosine!C36="","",G27^2) ->  | J27: 24
A28: =IF(Sine!C36="","",Sine!$H$12+Sine!$H$14*SIN(2*3.14159/Sine!$H$16*(Sine!B36-Sine!$H$18))) ->  | B28: =IF(Sine!C36="","",Sine!C36-Sheet3!A28) ->  | C28: =IF(Sine!C36="","",B28^2) ->  | F28: =IF(Cosine!C37="","",Cosine!$G$15+Cosine!$G$17*COS(2*3.14159/Cosine!$G$19*(Cosine!B37-Cosine!$G$21))) ->  | G28: =IF(Cosine!C37="","",Cosine!C37-Sheet3!F28) ->  | H28: =IF(Cosine!C37="","",G28^2) ->  | J28: 25
A29: =IF(Sine!C37="","",Sine!$H$12+Sine!$H$14*SIN(2*3.14159/Sine!$H$16*(Sine!B37-Sine!$H$18))) ->  | B29: =IF(Sine!C37="","",Sine!C37-Sheet3!A29) ->  | C29: =IF(Sine!C37="","",B29^2) ->  | F29: =IF(Cosine!C38="","",Cosine!$G$15+Cosine!$G$17*COS(2*3.14159/Cosine!$G$19*(Cosine!B38-Cosine!$G$21))) ->  | G29: =IF(Cosine!C38="","",Cosine!C38-Sheet3!F29) ->  | H29: =IF(Cosine!C38="","",G29^2) ->  | J29: 26
A30: =IF(Sine!C38="","",Sine!$H$12+Sine!$H$14*SIN(2*3.14159/Sine!$H$16*(Sine!B38-Sine!$H$18))) ->  | B30: =IF(Sine!C38="","",Sine!C38-Sheet3!A30) ->  | C30: =IF(Sine!C38="","",B30^2) ->  | F30: =IF(Cosine!C39="","",Cosine!$G$15+Cosine!$G$17*COS(2*3.14159/Cosine!$G$19*(Cosine!B39-Cosine!$G$21))) ->  | G30: =IF(Cosine!C39="","",Cosine!C39-Sheet3!F30) ->  | H30: =IF(Cosine!C39="","",G30^2) ->  | J30: 27
A31: =IF(Sine!C39="","",Sine!$H$12+Sine!$H$14*SIN(2*3.14159/Sine!$H$16*(Sine!B39-Sine!$H$18))) ->  | B31: =IF(Sine!C39="","",Sine!C39-Sheet3!A31) ->  | C31: =IF(Sine!C39="","",B31^2) ->  | F31: =IF(Cosine!C40="","",Cosine!$G$15+Cosine!$G$17*COS(2*3.14159/Cosine!$G$19*(Cosine!B40-Cosine!$G$21))) ->  | G31: =IF(Cosine!C40="","",Cosine!C40-Sheet3!F31) ->  | H31: =IF(Cosine!C40="","",G31^2) ->  | J31: 28
A32: =IF(Sine!C40="","",Sine!$H$12+Sine!$H$14*SIN(2*3.14159/Sine!$H$16*(Sine!B40-Sine!$H$18))) ->  | B32: =IF(Sine!C40="","",Sine!C40-Sheet3!A32) ->  | C32: =IF(Sine!C40="","",B32^2) ->  | F32: =IF(Cosine!C41="","",Cosine!$G$15+Cosine!$G$17*COS(2*3.14159/Cosine!$G$19*(Cosine!B41-Cosine!$G$21))) ->  | G32: =IF(Cosine!C41="","",Cosine!C41-Sheet3!F32) ->  | H32: =IF(Cosine!C41="","",G32^2) ->  | J32: 29
A33: =IF(Sine!C41="","",Sine!$H$12+Sine!$H$14*SIN(2*3.14159/Sine!$H$16*(Sine!B41-Sine!$H$18))) ->  | B33: =IF(Sine!C41="","",Sine!C41-Sheet3!A33) ->  | C33: =IF(Sine!C41="","",B33^2) ->  | F33: =IF(Cosine!C42="","",Cosine!$G$15+Cosine!$G$17*COS(2*3.14159/Cosine!$G$19*(Cosine!B42-Cosine!$G$21))) ->  | G33: =IF(Cosine!C42="","",Cosine!C42-Sheet3!F33) ->  | H33: =IF(Cosine!C42="","",G33^2) ->  | J33: 30
B34: =IF(Sine!C45="","",Sine!C45-Sheet3!A34) ->  | C34: =IF(Sine!C45="","",B34^2) ->  | G34: =IF(Cosine!C43="","",Cosine!C43-Sheet3!F34) ->  | H34: =IF(Cosine!C43="","",G34^2) -> 
